Cogmind - Beta 14 @@@ ROGUE MODE // 2024.12.01 @ 13:03:18 Player: morimori Result: Destroyed by H-88 Terminator with KE Penetrator Performance ------------- Evolutions (9) 4500 Regions Visited (31) 6200 Robots Destroyed (210) 1050 Value Destroyed (5907) 5907 Prototype IDs (68) 1360 Alien Tech Used (3) 600 Bonus (1229) 1229 TOTAL SCORE: 20846 Bonus ------- High Alert Combat Kills 216 Follower Combat Kills 1428 Network Hubs Disabled 200 Met Zhirov 300 Built Enhanced Grunts 300 Friendly Fire -1215 Cogmind --------- Core Integrity 0/1600 Matter 61/300 Energy 12/100 System Corruption 12% Temperature Cool (0) Movement Core (250) Ox4 Location -1/Access Parts ------- > --- POWER (3) -------- (None) > --- PROPULSION (7) --- (None) > --- UTILITY (14) ----- Experimental Signal Interpreter Advanced Hacking Suite > --- WEAPON (2) ------- Enhanced Nova Cannon > --- INVENTORY (5) ---- Light Quantum Reactor 2N-1CE's Frost Array High-capacity Storage Unit Authchip [Device] Peak State ------------ > --- POWER ------------ Compact Particle Reactor Light Quantum Reactor > --- PROPULSION ------- Biometal Medium Treads Biometal Medium Treads Advanced Heavy Treads Antigrav Array Combat Linear Gravjet > --- UTILITY ---------- Experimental Power Amplifier High-capacity Storage Unit Experimental Signal Interpreter Experimental Terrain Scanner Experimental Terrain Scan Processor Core Analyzer Experimental EM Disruption Field Advanced Hardlight Generator Improved Hacking Suite Improved Hacking Suite Improved Hacking Suite Advanced Hacking Suite Experimental Hacking Suite > --- WEAPON ----------- Potential Cannon > --- INVENTORY -------- 2N-1CE's Frost Array Advanced Energy Well Advanced Matter Compressor Long-range Sensor Array Advanced Particle Accelerator Quantum Capacitor Advanced Phase Shifter SHELL Armor Antimissile System Authchip [Device] Authchip [Device] Authchip [Device] Authchip [Armor] Matter Neutralizer Linear Accelerator Z-bomb Delivery System [Rating: 193] Favorites ----------- Power Light Quantum Reactor Engine Ion Engine Power Core Micro Nuclear Core Reactor Light Quantum Reactor Propulsion Gravmag Array Treads Biometal Medium Treads Leg Flexi-carbon Leg Wheel Wheel Hover Unit Gravmag Array Utility Improved Hacking Suite Device Improved Terrain Scanner Storage High-capacity Storage Unit Processor Experimental Terrain Scan Processor Hackware Improved Hacking Suite Protection Hardened Light Armor Plating Weapon Light Assault Rifle Energy Gun EM Pulse Gun Energy Cannon Neutron Cannon Ballistic Gun Light Assault Rifle Ballistic Cannon Linear Accelerator Launcher Heavy Rocket Launcher Special Weapon RU-N14's Throwing Claymores Impact Weapon Impact Mace Piercing Weapon Kinetic Spear Build | -11 -10 -10 -9 -9 -8 -7 -7 -7 -7 -6 -6 -6 -6 -6 -6 -5 -5 -5 -5 -5 -4 -4 -4 -4 -4 -4 -3 -3 -3 -2 -1 ------- Run | Yrd Mat Min Mat Min Mat Fac Low Low Zio Pro Fac Was Fac Low Low Fac Ext Cet Arc Hub Fac Was Fac Upp Upp Zhi Pro Res Tes Res Acc Slots Evolved 18 | . . . 2 . 2 2 . . . . 2 . . . . 2 . . . . 2 . . . . . . 2 . 2 2 Power 2 | . . . . . . . . . . . . . . . . . . . . . . . . . . . . 1 . . 1 Propulsion 4 | . . . . . 2 . . . . . 2 . . . . . . . . . . . . . . . . . . . . Utility 12 | . . . 2 . . 2 . . . . . . . . . 2 . . . . 2 . . . . . . 1 . 2 1 Weapon . | . . . . . . . . . . . . . . . . . . . . . . . . . . . . . . . . Parts Attached 440 | 8 17 4 23 23 35 42 7 2 7 . 21 . 7 6 . 21 25 7 23 5 4 5 38 4 2 11 6 25 35 22 5 Power 25 | 1 1 1 2 1 2 2 . . . . 4 . 1 . . . 1 . 1 . 1 1 1 . . . . 4 1 . . Engine 7 | 1 1 1 2 1 . 1 . . . . . . . . . . . . . . . . . . . . . . . . . Core 9 | . . . . . 2 1 . . . . 4 . 1 . . . 1 . . . . . . . . . . . . . . Reactor 9 | . . . . . . . . . . . . . . . . . . . 1 . 1 1 1 . . . . 4 1 . . Propulsion 102 | 2 7 1 2 12 8 8 . . . . 7 . 1 . . 4 5 1 8 2 . . 18 . . 3 . 2 6 3 2 Treads 6 | . . . . . . . . . . . . . . . . . . . . . . . . . . . . . 3 3 . Leg 3 | . . . . 1 . . . . . . . . . . . 1 . . 1 . . . . . . . . . . . . Wheel 32 | 2 7 1 2 11 7 2 . . . . . . . . . . . . . . . . . . . . . . . . . Hover 61 | . . . . . 1 6 . . . . 7 . 1 . . 3 5 1 7 2 . . 18 . . 3 . 2 3 . 2 Flight . | . . . . . . . . . . . . . . . . . . . . . . . . . . . . . . . . Utility 217 | 2 4 1 8 3 18 19 1 2 5 . 8 . 4 5 . 10 16 2 9 2 3 4 13 4 2 8 6 18 25 13 2 Device 155 | 1 2 1 4 3 10 8 . 2 4 . 5 . 3 4 . 8 13 2 6 2 1 3 11 4 2 6 6 13 22 8 1 Storage 12 | 1 2 . . . 1 2 . . . . . . 1 . . . . . . . . 1 1 . . 1 . . 1 1 . Processor 11 | . . . 2 . . 3 . . 1 . 2 . . . . 1 . . . . . . . . . . . . . 1 1 Hackware 18 | . . . . . . 1 1 . . . 1 . . . . 1 . . 3 . 2 . . . . 1 . 5 2 1 . Protection 21 | . . . 2 . 7 5 . . . . . . . 1 . . 3 . . . . . 1 . . . . . . 2 . Artifact . | . . . . . . . . . . . . . . . . . . . . . . . . . . . . . . . . Weapon 96 | 3 5 1 11 7 7 13 6 . 2 . 2 . 1 1 . 7 3 4 5 1 . . 6 . . . . 1 3 6 1 Energy Gun 4 | 2 . . . . 1 . . . . . . . . . . . . . 1 . . . . . . . . . . . . Energy Cannon 27 | . . . . . 1 4 5 . 1 . 1 . 1 . . 2 1 1 1 1 . . 1 . . . . 1 1 4 1 Ballistic Gun 31 | 1 4 1 8 4 4 5 . . . . . . . . . 1 . . 1 . . . 2 . . . . . . . . Ballistic Cannon 4 | . . . . . . 2 . . . . . . . . . . . . . . . . . . . . . . . 2 . Launcher 23 | . 1 . 3 3 1 1 1 . . . 1 . . 1 . 1 2 3 1 . . . 2 . . . . . 2 . . Special Weapon 5 | . . . . . . . . . 1 . . . . . . 2 . . 1 . . . 1 . . . . . . . . Impact Weapon 1 | . . . . . . 1 . . . . . . . . . . . . . . . . . . . . . . . . . Slashing Weapon . | . . . . . . . . . . . . . . . . . . . . . . . . . . . . . . . . Piercing Weapon 1 | . . . . . . . . . . . . . . . . 1 . . . . . . . . . . . . . . . Special Melee Weapon . | . . . . . . . . . . . . . . . . . . . . . . . . . . . . . . . . Unidentified Prototypes 38 | . . . 1 . 2 5 . . 3 . 1 . 1 1 . 3 . . 2 1 . 2 2 . . 4 . 3 5 2 . Parts Lost 40 | . 2 . 1 6 2 . . . . . . . . . . 1 4 1 . 1 . . . . . . . . 4 13 5 Power 7 | . 1 . 1 1 . . . . . . . . . . . . 1 . . . . . . . . . . . 1 2 . Propulsion 18 | . 1 . . 3 2 . . . . . . . . . . 1 2 1 . 1 . . . . . . . . . 5 2 Utility 12 | . . . . 2 . . . . . . . . . . . . . . . . . . . . . . . . 2 5 3 Weapon 3 | . . . . . . . . . . . . . . . . . 1 . . . . . . . . . . . 1 1 . Highest Loss Streak 12 | . 2 . 1 5 1 . . . . . . . . . . 1 1 1 . 1 . . . . . . . . 3 12 3 To Critical Strikes . | . . . . . . . . . . . . . . . . . . . . . . . . . . . . . . . . Average Slot Usage (%) 87 | . 95 100 97 96 99 96 84 84 84 84 92 86 74 72 68 75 79 75 85 87 89 90 98 90 90 90 90 89 88 79 18 Engine 2 | . 14 14 11 10 4 3 . . . . . . . . . . . . . . . . . . . . . . . . . Core 2 | . . . . . 4 3 7 7 7 7 6 6 6 6 6 5 5 5 3 . . . . . . . . . . . . Reactor 2 | . . . . . . . . . . . . . . . . . . . 1 5 4 5 4 5 5 5 5 9 8 7 . Treads 1 | . . . . . . . . . . . . . . . . . . . . . . . . . . . . . 3 11 . Wheel 8 | . 28 28 22 20 33 24 . . . . . . . . . . . . . . . . . . . . . . . . . Hover 17 | . . . . . 2 5 30 30 30 30 34 26 20 19 18 18 21 21 24 32 30 30 34 30 30 30 30 27 21 7 1 Device 12 | . 10 14 20 13 15 14 15 15 15 15 13 13 13 12 12 9 9 11 11 11 10 10 9 10 10 10 10 8 10 11 2 Storage 6 | . 13 14 11 11 9 7 7 7 7 7 6 6 6 6 6 5 5 5 5 5 5 5 5 5 5 5 5 4 4 5 . Processor 12 | . . . 10 11 9 20 15 15 15 15 13 13 13 12 12 14 16 16 16 16 15 15 15 15 15 15 15 13 10 10 9 Hackware 8 | . . . . . . 1 7 7 7 7 6 6 6 6 6 9 11 11 11 11 20 20 20 20 20 20 20 21 22 16 3 Energy Cannon 2 | . . . . . 1 1 . . . . 5 6 6 6 6 5 4 2 1 4 5 5 4 5 5 5 5 4 3 3 . Ballistic Gun 6 | . 23 28 21 20 15 11 . . . . . . . . . . . . 3 . . . 2 . . . . . . . . Peak Build Rating 193 | 7 8 10 19 22 28 46 46 42 51 49 81 80 83 83 81 107 104 104 110 105 116 122 140 140 140 144 144 166 180 193 41 Average Rating 79 | 6 7 9 15 18 24 37 41 41 44 49 70 80 79 80 81 97 98 97 103 102 112 117 134 138 138 140 142 157 167 176 33 On Entrance 78 | . 7 8 10 18 20 27 40 41 41 49 49 80 80 81 81 81 106 104 100 102 103 116 119 140 140 138 144 142 162 173 21 Naked Turns . | . . . . . . . . . . . . . . . . . . . . . . . . . . . . . . . . Heaviest Build 112 | 14 29 26 37 38 66 73 32 28 38 28 49 49 59 57 57 65 77 73 74 67 68 68 77 77 77 77 77 93 108 112 2 Greatest Support 175 | 20 26 26 20 26 52 52 34 34 34 34 58 58 60 60 60 71 74 74 74 70 70 70 80 80 80 85 85 86 140 175 14 Greatest Overweight (x) 22 | 1 1 1 1 3 1 2 . . 1 . . . 1 . . 1 1 1 5 1 . . 1 . . 22 . 1 1 . . Average Overweight (x) . | . . . 1 1 . . . . . . . . . . . . . . . . . . . . . . . . . . . Largest Inventory Capacity 20 | 8 15 15 15 15 20 20 15 15 15 15 15 15 20 20 20 20 20 20 20 20 20 20 20 20 20 20 20 20 20 20 5 Average Capacity 17 | 7 14 15 15 15 17 19 15 15 15 15 15 15 19 20 20 20 20 20 20 20 20 20 20 20 20 20 20 20 20 19 5 Most Carried 20 | 6 15 15 15 15 20 20 15 15 15 15 15 15 20 20 20 20 20 20 20 20 20 20 20 20 20 20 20 20 20 20 5 Average Carried 16 | 2 12 14 14 14 16 19 14 15 14 15 14 15 18 19 20 18 18 19 19 19 17 19 19 20 20 19 20 19 19 18 4 Final Capacity 20 | 8 15 15 15 15 20 15 15 15 15 15 15 15 20 20 20 20 20 20 20 20 20 20 20 20 20 20 20 20 20 5 5 Final Carried 20 | 6 15 15 15 15 20 15 15 15 15 15 15 15 20 20 20 18 20 19 20 18 20 20 20 20 20 20 20 19 19 5 4 Class Distribution -------------------- 17% | Scavenger-Mutant 16% | Scavenger-Scout 12% | Mutant 9% | Hacker-Scout 9% | Hacker-Skirmisher 8% | Scout 6% | Hacker-Mutant 5% | Wizard-Scout 5% | Scavenger-Skirmisher 4% | Wizard-Skirmisher 3% | Wizard-Mutant Dominant Class ---------------- Mutant | -10/Materials Scavenger-Mutant | -10/Mines Scavenger-Mutant | -9/Materials Scavenger-Mutant | -9/Mines Scavenger-Mutant | -8/Materials Scavenger-Skirmisher | -7/Factory Scavenger-Scout | -7/Lower Caves Scavenger-Scout | -7/Lower Caves Scavenger-Scout | -7/Zion Scavenger-Scout | -6/Proximity Caves Scout | -6/Factory Scout | -6/Waste Scout | -6/Factory Scout | -6/Lower Caves Scout | -6/Lower Caves Hacker-Scout | -5/Factory Hacker-Skirmisher | -5/Extension Hacker-Scout | -5/Cetus Hacker-Skirmisher | -5/Archives Scavenger-Scout | -5/Hub_04(d) Hacker-Scout | -4/Factory Hacker-Scout | -4/Waste Hacker-Skirmisher | -4/Factory Hacker-Mutant | -4/Upper Caves Hacker-Scout | -4/Upper Caves Hacker-Mutant | -4/Zhirov Hacker-Scout | -3/Proximity Caves Wizard-Scout | -3/Research Wizard-Scout | -3/Testing Wizard-Skirmisher | -2/Research Mutant | -1/Access Resources | -11 -10 -10 -9 -9 -8 -7 -7 -7 -7 -6 -6 -6 -6 -6 -6 -5 -5 -5 -5 -5 -4 -4 -4 -4 -4 -4 -3 -3 -3 -2 -1 ----------- Run | Yrd Mat Min Mat Min Mat Fac Low Low Zio Pro Fac Was Fac Low Low Fac Ext Cet Arc Hub Fac Was Fac Upp Upp Zhi Pro Res Tes Res Acc Matter Collected 7744 | 294 518 95 460 593 637 463 213 55 20 50 139 . 136 118 . 50 654 125 365 34 . 501 316 315 58 100 38 262 1002 84 49 Remotely . | . . . . . . . . . . . . . . . . . . . . . . . . . . . . . . . . Salvage Created 6981 | 183 1029 144 714 562 856 339 30 . . . . . 20 14 . 86 317 71 320 152 . 62 301 21 59 303 . . 1140 258 . Parts 396 | 11 51 15 41 43 57 25 3 . . . . . 2 . . 9 17 3 17 14 . . 18 . . 1 . . 59 10 . Haulers Intercepted 5 | . 1 . 2 . 1 . . . . . . . . . . . . . . . . . . . . . . . 1 . . Recyclers Shooed 11 | . 4 . 1 2 1 1 . . . . . . . . . . . . . . . . 2 . . . . . . . . Parts Field Recycled . | . . . . . . . . . . . . . . . . . . . . . . . . . . . . . . . . Retrieved Matter . | . . . . . . . . . . . . . . . . . . . . . . . . . . . . . . . . Parts Self-Destructed 5 | . . . . . . . 3 . . 1 . . . . . . . . . . . . . . 1 . . . . . . Prevented 2 | . . . . . . . . . . . . . . . . . . . . . . . . . 2 . . . . . . Kills | -11 -10 -10 -9 -9 -8 -7 -7 -7 -7 -6 -6 -6 -6 -6 -6 -5 -5 -5 -5 -5 -4 -4 -4 -4 -4 -4 -3 -3 -3 -2 -1 ------- Run | Yrd Mat Min Mat Min Mat Fac Low Low Zio Pro Fac Was Fac Low Low Fac Ext Cet Arc Hub Fac Was Fac Upp Upp Zhi Pro Res Tes Res Acc Combat Hostiles Destroyed 104 | . 13 3 15 8 11 3 3 . . . . . . 3 . 4 8 1 . . . . 6 . . . . . 19 7 . Guns 34 | . 11 3 7 3 7 2 . . . . . . . . . . . . . . . . 1 . . . . . . . . Cannons 14 | . . . . . 2 1 . . . . . . . . . 1 2 . . . . . . . . . . . 7 1 . AOE 52 | . 2 . 8 5 2 . 3 . . . . . . 3 . 3 5 . . . . . 5 . . . . . 11 5 . Classes Destroyed 17 | 3 4 1 2 2 2 1 . . . . . . . . . . 1 . . . . . . 1 . . . . . . . Worker 26 | 2 2 . 2 6 2 . . . . . . . . . . 1 2 . . 6 . . . . . . . . 1 2 . Builder 16 | . . 1 1 3 1 1 . . . . . . . . . . 1 . . 2 . . . . . . . . 4 2 . Tunneler 9 | 3 1 1 . 2 . 1 . . . . . . . . . . . . . . . . . . . . . . . 1 . Hauler 5 | . 1 . 2 . 1 . . . . . . . . . . . . . . . . . . . . . . . 1 . . Recycler 18 | 1 3 . 2 3 2 1 . . . . . . . . . . . . . . . . 1 . . . . . 4 1 . Operator 13 | . 1 . 2 . 1 . . . . . . . . . . . . . 9 . . . . . . . . . . . . Watcher 17 | . . . 1 . 5 2 . . . . . . 1 . . 1 1 1 . . . . 2 . . . . . 3 . . Swarmer 41 | . 5 3 7 . 2 . 3 . . . . . . 3 . 2 4 . . . . . 4 . . . . . 4 4 . Grunt 34 | . 8 . 6 5 5 . . . . . . . . . . . . . . . . . . . . . . . 10 . . Brawler 1 | . . . . . 1 . . . . . . . . . . . . . . . . . . . . . . . . . . Duelist 1 | . . . . 1 . . . . . . . . . . . . . . . . . . . . . . . . . . . Sentry 7 | . . . 2 . 2 1 . . . . . . . . . . 2 . . . . . . . . . . . . . . Demolisher 2 | . . . . 2 . . . . . . . . . . . . . . . . . . . . . . . . . . . Hunter 4 | . . . . . 1 . . . . . . . . . . . . . . . . . . . . . . . 2 1 . Programmer 11 | . . . . . . 2 . . . . . . . . . 2 . . . . . . 2 . . . . . 3 2 . Behemoth 2 | . . . . . . . . . . . . . . . . . 2 . . . . . . . . . . . . . . Cetus Guard 1 | . . . . . . . . . . . . . . . . . . 1 . . . . . . . . . . . . . Packrat 1 | . . . . . . . . . . . . . . . . . . . . . . . . . 1 . . . . . . Samaritan 1 | . . . . . . . . . . . . . . . . . . . . . . . . 1 . . . . . . . Thug 2 | . . 1 . . . . . . . . . . . . . . . 1 . . . . . . . . . . . . . Best Kill Streak 8 | 2 5 4 6 4 4 2 3 . . . . . 1 3 . 4 7 1 4 8 . . 5 . . . . . 8 5 . Combat Bots Only 5 | . 4 3 4 3 2 1 3 . . . . . . 3 . 2 3 1 . . . . 4 . . . . . 5 4 . Max Kills in Single Turn 8 | 2 2 1 3 1 3 1 2 . . . . . 1 2 . 3 2 1 1 8 . . 3 1 1 . . . 5 3 . Gunslinging . | . . . . . . . . . . . . . . . . . . . . . . . . . . . . . . . . Exploded 3 | . 2 . 3 1 2 . 2 . . . . . . 2 . 2 2 . . . . . 3 . . . . . 3 2 . Melee . | . . . . . . . . . . . . . . . . . . . . . . . . . . . . . . . . Uniques/NPCs Destroyed . | . . . . . . . . . . . . . . . . . . . . . . . . . . . . . . . . Combat | -11 -10 -10 -9 -9 -8 -7 -7 -7 -7 -6 -6 -6 -6 -6 -6 -5 -5 -5 -5 -5 -4 -4 -4 -4 -4 -4 -3 -3 -3 -2 -1 -------- Run | Yrd Mat Min Mat Min Mat Fac Low Low Zio Pro Fac Was Fac Low Low Fac Ext Cet Arc Hub Fac Was Fac Upp Upp Zhi Pro Res Tes Res Acc Hostile Shots Fired 1012 | . 66 14 63 24 42 57 2 . . 12 24 . . 9 . 23 53 9 . 8 . . 15 . 4 . 8 12 167 235 165 Missed 385 | . 18 5 19 1 16 21 2 . . 10 17 . . 3 . 7 21 2 . 3 . . 3 . 2 . 7 5 56 95 72 Damage Taken 11801 | . 548 74 533 686 353 340 . . . 10 47 . . 54 . 379 788 156 25 285 . . 225 . 28 . 25 127 1862 2997 2259 Core 3256 | . 174 25 101 141 46 66 . . . . . . . 6 . 38 125 . . 44 . . 20 . . . . 19 305 539 1607 Absorbed by Shields 571 | . . . . . . . . . . . . . . 30 . . 243 42 . . . . 8 . 16 . 8 16 . 208 . Redirected to Shielding 26 | . . . . . . . . . . . . . . 4 . . 22 . . . . . . . . . . . . . . Ignored by Resistances 582 | . . . . . 33 47 . . . . . . . . . . . . . . . . . . . . . . 415 87 . Regen/Repaired (Parts) 1084 | . 189 . 133 . . 31 . . 113 . 35 . . . . 25 . . . . 95 . 339 . . . . . 70 54 . Core Remaining (%) 74 | 100 . 20 . 39 91 . . . . 90 . . . . 99 . . . . 79 . . . . . . 98 . 67 62 . Volleys Fired 848 | 14 111 25 59 39 58 50 12 . 1 . 61 . 17 11 . 15 39 15 63 21 15 7 53 5 12 10 3 38 68 23 3 Largest 2 | 2 2 2 2 2 2 2 1 . 1 . 1 . 1 1 . 1 1 1 1 1 1 1 2 1 1 1 1 1 1 1 1 Hottest 200 | 60 60 40 46 56 83 113 90 . 90 . 90 . 35 39 . 105 90 98 94 90 90 90 123 90 90 90 90 113 200 200 120 Shots Fired 1153 | 28 220 52 110 65 110 71 12 . 1 . 61 . 17 12 . 14 40 15 63 21 15 7 57 5 12 10 3 38 68 23 3 Gun 650 | 28 218 52 103 51 96 35 . . . . . . . . . . . . 63 . . . 4 . . . . . . . . Cannon 439 | . . . . . 12 36 9 . 1 . 61 . 17 10 . 9 28 6 . 21 15 7 50 5 12 10 3 38 65 21 3 Launcher 60 | . 2 . 7 14 2 . 3 . . . . . . 2 . 3 12 9 . . . . 1 . . . . . 3 2 . Special 4 | . . . . . . . . . . . . . . . . 2 . . . . . . 2 . . . . . . . . Kinetic 547 | 14 193 52 103 51 82 38 . . . . . . . . . . . . 9 . . . 4 . . . . . . 1 . Thermal 503 | . . . . . 26 33 9 . 1 . 61 . 17 10 . 9 28 6 54 21 15 7 50 5 12 10 3 38 65 20 3 Explosive 60 | . 2 . 7 14 2 . 3 . . . . . . 2 . 5 12 5 . . . . 3 . . . . . 3 2 . Electromagnetic 43 | 14 25 . . . . . . . . . . . . . . . . 4 . . . . . . . . . . . . . Robot Hit Streak 20 | 4 14 9 18 8 8 10 2 . . . 3 . 2 3 . 3 6 5 12 7 . 8 8 6 7 17 . . 20 6 . Robot Miss Streak 5 | 2 4 3 2 3 3 3 . . . . 1 . 2 1 . 2 3 . 5 . . 1 1 . . . . . 3 2 . Penetration Max 1 | . . . . . 1 . . . . . . . . . . . . . 1 . . . . . . . . . . . . Secondary Targets 1 | . 1 . . . . . . . . . . . . . . . . . . . . . . . . . . . . . . Max Gunslinging Chain 1 | . 1 . . . . . . . . . . . . . . . . . . . . . . . . . . . . . . Shots Hit Robots 535 | 16 133 32 83 40 72 29 1 . . . 1 . 2 1 . 6 15 5 40 1 . 6 13 3 1 10 . . 16 9 . Core Hits 356 | 8 50 13 44 42 39 14 5 . . . . . 1 5 . 8 13 26 19 14 . 1 15 1 1 3 . . 26 7 1 Critical Kills 5 | . . . . . 1 . . . . . . . . . . . . . . . . . . . . . . . 2 2 . Critical Parts Destroyed 1 | . . . . . . 1 . . . . . . . . . . . . . . . . . . . . . . . . . Critical Strikes 8 | . . . . . 2 1 . . . . . . . . . 1 . . . . . . . . . . . . 2 2 . Burn 1 | . . . . . 1 . . . . . . . . . . . . . . . . . . . . . . . . . . Meltdown 4 | . . . . . . . . . . . . . . . . . . . . . . . . . . . . . 2 2 . Destroy 2 | . . . . . 1 1 . . . . . . . . . . . . . . . . . . . . . . . . . Sever 1 | . . . . . . . . . . . . . . . . 1 . . . . . . . . . . . . . . . Melee Attacks . | . . . . . . . . . . . . . . . . . . . . . . . . . . . . . . . . Impact . | . . . . . . . . . . . . . . . . . . . . . . . . . . . . . . . . Slashing . | . . . . . . . . . . . . . . . . . . . . . . . . . . . . . . . . Piercing . | . . . . . . . . . . . . . . . . . . . . . . . . . . . . . . . . Sneak Attacks . | . . . . . . . . . . . . . . . . . . . . . . . . . . . . . . . . Combat Hostiles . | . . . . . . . . . . . . . . . . . . . . . . . . . . . . . . . . Follow-up Attacks . | . . . . . . . . . . . . . . . . . . . . . . . . . . . . . . . . Damage Inflicted 23550 | 245 1352 277 1738 1301 1471 593 296 . . . 33 . 65 266 . 799 1282 1100 1246 758 . 218 940 108 37 442 . 8 5436 3517 22 Guns 6043 | 176 1190 277 945 538 1129 448 . . . . . . . . . . . . 1246 . . . 94 . . . . . . . . Cannons 5236 | . . . . . 208 145 . . . . 33 . 65 . . 226 489 . . 36 . 218 302 108 37 442 . . 1975 952 . Explosions 12141 | 69 162 . 793 763 134 . 296 . . . . . . 266 . 510 793 1100 . 722 . . 514 . . . . . 3461 2558 . Melee . | . . . . . . . . . . . . . . . . . . . . . . . . . . . . . . . . Ramming 37 | . . . . . . . . . . . . . . . . . . . . . . . . . . . . 8 . 7 22 Kinetic 4526 | 60 933 277 945 538 920 530 . . . . . . . . . . . . 229 . . . 94 . . . . . . . . Thermal 9435 | 69 63 . . . 417 63 . . . . 33 . 65 . . 226 489 . 1017 36 . 218 302 108 37 442 . . 3870 1980 . Explosive 7986 | . 99 . 793 763 134 . 296 . . . . . . 266 . 510 793 722 . . . . 514 . . . . . 1566 1530 . Electromagnetic 1473 | 116 257 . . . . . . . . . . . . . . . . 378 . 722 . . . . . . . . . . . Impact . | . . . . . . . . . . . . . . . . . . . . . . . . . . . . . . . . Slashing 93 | . . . . . . . . . . . . . . . . 63 . . . . . . 30 . . . . . . . . Piercing . | . . . . . . . . . . . . . . . . . . . . . . . . . . . . . . . . Highest Corruption 12 | . 1 1 . . . 1 1 1 . . 1 8 8 3 3 3 3 3 3 4 . . 2 . . . . . 1 5 12 Average Corruption 2 | . 1 1 . . . 1 1 1 . . 1 8 4 3 3 2 3 3 2 2 . . 1 . . . . . 1 3 7 Corruption Purged 12 | . . . . . . . . 1 . . 1 . 5 . . . . . 3 . . . 2 . . . . . . . . Corruption Blocked . | . . . . . . . . . . . . . . . . . . . . . . . . . . . . . . . . Effects 72 | . . 8 . . . 1 7 . . . 2 1 8 8 . 2 19 5 3 . . . 5 . . . . . . 1 2 Message Errors 18 | . . 2 . . . . 1 . . . . . 3 1 . 1 5 1 1 . . . 1 . . . . . . 1 1 Matter Fused 26 | . . 4 . . . . 4 . . . . 1 . 4 . . 5 2 1 . . . 4 . . . . . . . 1 Heat Flow Errors 8 | . . . . . . . 1 . . . . . 2 . . . 4 1 . . . . . . . . . . . . . Energy Discharges 7 | . . . . . . . . . . . 2 . 1 1 . . 2 1 . . . . . . . . . . . . . Parts Rejected 2 | . . . . . . . . . . . . . . . . . 1 . 1 . . . . . . . . . . . . Parts Fused 1 | . . . . . . . 1 . . . . . . . . . . . . . . . . . . . . . . . . Data Loss (minor) 3 | . . . . . . 1 . . . . . . 1 . . . 1 . . . . . . . . . . . . . . Data Loss (major) 2 | . . . . . . . . . . . . . 1 1 . . . . . . . . . . . . . . . . . Misfires 4 | . . 2 . . . . . . . . . . . 1 . . 1 . . . . . . . . . . . . . . Weapon Failures 1 | . . . . . . . . . . . . . . . . 1 . . . . . . . . . . . . . . . Overload Shots 3 | . . . . . . . . . . . . . . . . 3 . . . . . . . . . . . . . . . Overflow Damage 2333 | 14 2 . 6 5 6 . 1 . . . . . . 13 . 46 66 37 . 58 . 26 61 31 . 31 . . 1014 916 . Projectiles 937 | . . . . . . . . . . . . . . . . 5 61 . . 1 . 26 12 31 . 31 . . 408 362 . Explosions 1393 | 14 2 . 6 5 6 . 1 . . . . . . 13 . 41 5 37 . 57 . . 49 . . . . . 606 551 . Melee 3 | . . . . . . . . . . . . . . . . . . . . . . . . . . . . . . 3 . Knockbacks 1 | . . . . . . 1 . . . . . . . . . . . . . . . . . . . . . . . . . Impact . | . . . . . . . . . . . . . . . . . . . . . . . . . . . . . . . . Kinetic 1 | . . . . . . 1 . . . . . . . . . . . . . . . . . . . . . . . . . Secondary . | . . . . . . . . . . . . . . . . . . . . . . . . . . . . . . . . Self-Inflicted Damage 414 | . 29 . 3 42 . . . . . . . . . . . 87 45 17 . 95 . . . . . . . 4 42 41 9 Shots 11 | . 1 . 1 2 . . . . . . . . . . . 2 1 1 . 1 . . . . . . . . 1 1 . Rammed 8 | . . . . . . . . . . . . . . . . . . . . . . . . . . . . 1 . 2 5 Targets Rammed 8 | . . . . . . . . . . . . . . . . . . . . . . . . . . . . 1 . 2 5 Kicked . | . . . . . . . . . . . . . . . . . . . . . . . . . . . . . . . . Crushed . | . . . . . . . . . . . . . . . . . . . . . . . . . . . . . . . . Highest Temperature 443 | 40 114 . 24 17 145 164 199 . 42 . 196 . 151 22 . 443 220 188 431 140 121 123 276 190 194 204 3 90 303 135 48 Average Temperature 70 | 18 30 . 16 7 59 39 62 . 28 . 53 . 66 12 . 143 58 96 129 54 43 58 92 61 63 82 3 23 69 32 42 Received Heat Transfer 1398 | . 207 . 267 69 171 102 . . . . 12 . . . . . 178 6 . 9 . . 7 . 6 . . 6 160 45 153 Effects 8 | . . . . . . . . . . . . . . . . 1 . . 2 . . . 2 . . . . . 3 . . Shutdowns 2 | . . . . . . . . . . . . . . . . 1 . . 1 . . . . . . . . . . . . Interference 5 | . . . . . . . . . . . . . . . . . . . . . . . 2 . . . . . 3 . . Matter Decay 1 | . . . . . . . . . . . . . . . . . . . 1 . . . . . . . . . . . . Siege Activations . | . . . . . . . . . . . . . . . . . . . . . . . . . . . . . . . . Robots Corrupted 2 | . . . . . . . . . . . . . . . . . . 1 . . . . . . . . . . . 1 . Combat Hostiles 1 | . . . . . . . . . . . . . . . . . . 1 . . . . . . . . . . . . . Parts Fried 4 | . 1 . . . . . . . . . . . . . . . . . . . . . . . . . . . . 3 . Impact Corruptions 1 | . . . . . . . . . . . . . . . . . . . . . . . . . . . . . . 1 . Robots Melted 5 | . . . . . . . . . . . . . . . . . 1 . . . . . . . . . . . 2 2 . Combat Hostiles 3 | . . . . . . . . . . . . . . . . . 1 . . . . . . . . . . . 1 1 . Parts Melted 7 | . . . . . . . . . . . . . . . . . 3 . . . . . . . . . . . 3 1 . Heat Transferred 8139 | 50 100 . . . 814 74 . . . . 50 . 100 . . 260 750 . 1332 . . . . . . . . . 3152 1457 . Parts Sabotaged . | . . . . . . . . . . . . . . . . . . . . . . . . . . . . . . . . Parts Stolen . | . . . . . . . . . . . . . . . . . . . . . . . . . . . . . . . . Parts Stripped . | . . . . . . . . . . . . . . . . . . . . . . . . . . . . . . . . Power Chain Reactions 2 | 1 1 . . . . . . . . . . . . . . . . . . . . . . . . . . . . . . Alert | -11 -10 -10 -9 -9 -8 -7 -7 -7 -7 -6 -6 -6 -6 -6 -6 -5 -5 -5 -5 -5 -4 -4 -4 -4 -4 -4 -3 -3 -3 -2 -1 ------- Run | Yrd Mat Min Mat Min Mat Fac Low Low Zio Pro Fac Was Fac Low Low Fac Ext Cet Arc Hub Fac Was Fac Upp Upp Zhi Pro Res Tes Res Acc Peak Influence 631 | 30 341 213 269 240 312 103 . . . . 160 56 116 . . 328 599 206 231 461 277 53 207 . . . . 144 631 434 231 Initial 291 | . 19 127 4 104 48 44 . . . . 7 56 39 . . 35 160 52 82 16 218 51 37 . . . . . 55 291 231 Average 131 | 13 183 113 99 130 158 38 . . . . 26 56 56 . . 100 230 175 131 99 222 52 59 . . . . 35 178 288 201 Maximum Alert Level 2 | . 1 1 1 1 1 . . . . . . . . . . 1 2 1 1 2 1 . 1 . . . . . 2 2 1 Low Security (%) 71 | 100 48 60 91 79 61 100 . . . . 100 100 100 . . 81 61 24 75 91 26 100 95 . . . . 100 66 13 21 Level 1 25 | . 51 39 8 20 38 . . . . . . . . . . 18 12 75 24 . 73 . 4 . . . . . 22 82 78 Level 2 3 | . . . . . . . . . . . . . . . . . 26 . . 8 . . . . . . . . 11 4 . Level 3 . | . . . . . . . . . . . . . . . . . . . . . . . . . . . . . . . . Level 4 . | . . . . . . . . . . . . . . . . . . . . . . . . . . . . . . . . Level 5 . | . . . . . . . . . . . . . . . . . . . . . . . . . . . . . . . . High Security . | . . . . . . . . . . . . . . . . . . . . . . . . . . . . . . . . Max Security . | . . . . . . . . . . . . . . . . . . . . . . . . . . . . . . . . Squads Dispatched 52 | . 4 1 2 1 4 3 . . . . 6 . 3 . . 1 4 . . 3 2 . 5 . . . . 1 6 4 2 Investigation 22 | . 3 1 . . 2 1 . . . . 4 . 2 . . . 2 . . . 1 . 3 . . . . . 2 . 1 Extermination 12 | . . . . . . 2 . . . . 1 . 1 . . 1 . . . 1 1 . 1 . . . . . 2 2 . Reinforcement 16 | . 1 . 2 1 1 . . . . . 1 . . . . . 1 . . 2 . . 1 . . . . 1 2 2 1 Assault 1 | . . . . . . . . . . . . . . . . . 1 . . . . . . . . . . . . . . Garrison 1 | . . . . . 1 . . . . . . . . . . . . . . . . . . . . . . . . . . Intercept . | . . . . . . . . . . . . . . . . . . . . . . . . . . . . . . . . Searches Triggered . | . . . . . . . . . . . . . . . . . . . . . . . . . . . . . . . . Construction Impeded 5 | . . . . 1 . . . . . . . . . . . . 1 . . 1 . . . . . . . . 1 1 . Haulers Reinforced . | . . . . . . . . . . . . . . . . . . . . . . . . . . . . . . . . Active Scanning Responses . | . . . . . . . . . . . . . . . . . . . . . . . . . . . . . . . . Cargo Convoy Interrupts . | . . . . . . . . . . . . . . . . . . . . . . . . . . . . . . . . Stealth | -11 -10 -10 -9 -9 -8 -7 -7 -7 -7 -6 -6 -6 -6 -6 -6 -5 -5 -5 -5 -5 -4 -4 -4 -4 -4 -4 -3 -3 -3 -2 -1 --------- Run | Yrd Mat Min Mat Min Mat Fac Low Low Zio Pro Fac Was Fac Low Low Fac Ext Cet Arc Hub Fac Was Fac Upp Upp Zhi Pro Res Tes Res Acc Distress Signals 9 | . 2 . . . 1 . . . . . . . 1 . . . . . . . . . 3 . . . . . . 1 1 Communications Jammed . | . . . . . . . . . . . . . . . . . . . . . . . . . . . . . . . . Distress Signals . | . . . . . . . . . . . . . . . . . . . . . . . . . . . . . . . . Times Spotted 308 | . 31 3 22 11 22 11 2 . . 3 11 4 4 2 . 10 22 5 28 7 1 . 19 . 3 . 2 8 25 33 19 Peak Tracking Total 15 | . 5 3 5 3 4 3 2 . . 3 6 4 4 3 . 5 5 5 2 8 1 . 7 . 3 . 2 6 5 15 12 Tactical Retreats 29 | . 4 . . 1 2 . . . . . 4 . 1 . . 1 3 1 . . . . 2 . 2 . . 2 1 3 2 Traps | -11 -10 -10 -9 -9 -8 -7 -7 -7 -7 -6 -6 -6 -6 -6 -6 -5 -5 -5 -5 -5 -4 -4 -4 -4 -4 -4 -3 -3 -3 -2 -1 ------- Run | Yrd Mat Min Mat Min Mat Fac Low Low Zio Pro Fac Was Fac Low Low Fac Ext Cet Arc Hub Fac Was Fac Upp Upp Zhi Pro Res Tes Res Acc Traps Triggered 15 | . 3 . . . 1 1 . . . . 1 . . . . . 2 . . 1 1 . 1 . . . . . 2 . 2 Indirectly . | . . . . . . . . . . . . . . . . . . . . . . . . . . . . . . . . Trap Hack Attempts . | . . . . . . . . . . . . . . . . . . . . . . . . . . . . . . . . Triggered . | . . . . . . . . . . . . . . . . . . . . . . . . . . . . . . . . Disarmed . | . . . . . . . . . . . . . . . . . . . . . . . . . . . . . . . . Reprogrammed . | . . . . . . . . . . . . . . . . . . . . . . . . . . . . . . . . Reused . | . . . . . . . . . . . . . . . . . . . . . . . . . . . . . . . . Traps Extracted . | . . . . . . . . . . . . . . . . . . . . . . . . . . . . . . . . Installed . | . . . . . . . . . . . . . . . . . . . . . . . . . . . . . . . . Triggered 1 | . . . . . . . . . . . . . . . . . . . . . . . . . 1 . . . . . . Machines | -11 -10 -10 -9 -9 -8 -7 -7 -7 -7 -6 -6 -6 -6 -6 -6 -5 -5 -5 -5 -5 -4 -4 -4 -4 -4 -4 -3 -3 -3 -2 -1 ---------- Run | Yrd Mat Min Mat Min Mat Fac Low Low Zio Pro Fac Was Fac Low Low Fac Ext Cet Arc Hub Fac Was Fac Upp Upp Zhi Pro Res Tes Res Acc Machines Disabled 29 | . . . . 3 2 1 . . . . . . . . . 4 3 1 1 2 . . . . . . . . 9 1 2 Max in Single Turn 2 | . . . . 1 1 1 . . . . . . . . . 2 1 1 1 2 . . . . . . . . 2 1 1 Garrison Access 12 | . . . . . . 1 . . . . 3 . . . . . . . . . . . 4 . . . . 1 1 1 1 Network Hub 1 | . . . . . . . . . . . . . . . . . . . . 1 . . . . . . . . . . . Machines Repaired . | . . . . . . . . . . . . . . . . . . . . . . . . . . . . . . . . Machines Dismantled . | . . . . . . . . . . . . . . . . . . . . . . . . . . . . . . . . Machines Sabotaged . | . . . . . . . . . . . . . . . . . . . . . . . . . . . . . . . . Overloaded Fab Kills . | . . . . . . . . . . . . . . . . . . . . . . . . . . . . . . . . Hacking | -11 -10 -10 -9 -9 -8 -7 -7 -7 -7 -6 -6 -6 -6 -6 -6 -5 -5 -5 -5 -5 -4 -4 -4 -4 -4 -4 -3 -3 -3 -2 -1 --------- Run | Yrd Mat Min Mat Min Mat Fac Low Low Zio Pro Fac Was Fac Low Low Fac Ext Cet Arc Hub Fac Was Fac Upp Upp Zhi Pro Res Tes Res Acc Machines Accessed 152 | . 6 2 5 . 8 7 1 1 . . 27 . 8 . . 5 16 3 . 1 6 . 24 . . 9 . 7 11 4 1 Terminals 76 | . 4 1 4 . 6 2 . . . . 9 . 4 . . 2 15 3 . 1 3 . 11 . . . . 3 6 2 . Fabricators 16 | . . . . . . 2 . . . . 3 . 2 . . 1 . . . . 1 . 3 . . . . 2 2 . . Repair Stations 13 | . 1 . 1 . . 2 . . . . 3 . . . . 1 . . . . 1 . 3 . . . . . 1 . . Recycling Units 13 | . 1 . . . 1 . . . . . 5 . 1 . . 1 1 . . . 1 . 2 . . . . . . . . Scanalyzers 9 | . . . . . 1 . . . . . 4 . . . . . . . . . . . 1 . . . . 1 1 1 . Garrison Access 13 | . . . . . . 1 . . . . 3 . 1 . . . . . . . . . 4 . . . . 1 1 1 1 Total Hacks 450 | . 15 5 30 . 26 15 1 1 . . 58 . 28 . . 11 33 6 . 4 22 . 68 . . 48 . 26 42 10 1 Successful 310 | . 9 2 17 . 16 7 1 1 . . 34 . 16 . . 7 13 5 . 1 16 . 53 . . 48 . 22 35 6 1 Failed 138 | . 6 3 13 . 10 8 . . . . 24 . 12 . . 4 20 1 . 3 6 . 14 . . . . 4 6 4 . Catastrophic 20 | . . 2 . . 2 2 . . . . 5 . 2 . . . 2 . . . 3 . 1 . . . . . 1 . . Database Lockouts 2 | . . . . . . . . . . . . . . . . . . . . . . . 1 . . . . . 1 . . Manual 167 | . 12 4 13 . 12 2 . . . . 19 . 18 . . 4 9 1 . 4 13 . 20 . . . . 10 20 6 . Terminals 230 | . 12 4 17 . 15 4 . . . . 23 . 17 . . 5 32 6 . 4 15 . 37 . . . . 10 23 6 . Fabricators 54 | . . . . . . 5 . . . . 7 . 9 . . 2 . . . . 3 . 7 . . . . 12 9 . . Repair Stations 42 | . 2 . 13 . . 4 . . . . 6 . . . . 2 . . . . 3 . 10 . . . . . 2 . . Recycling Units 17 | . 1 . . . 2 . . . . . 7 . 1 . . 2 1 . . . 1 . 2 . . . . . . . . Scanalyzers 38 | . . . . . 9 . . . . . 10 . . . . . . . . . . . 6 . . . . 3 7 3 . Garrison Access 18 | . . . . . . 2 . . . . 5 . 1 . . . . . . . . . 6 . . . . 1 1 1 1 Terminal Hacks 136 | . 2 2 4 . 2 1 1 1 . . 5 . 5 . . 2 12 5 . 1 6 . 20 . . 48 . 5 13 1 . Record 45 | . . . . . . . . . . . . . . . . . . 5 . . 2 . 2 . . 36 . . . . . Part Schematic 19 | . . . 1 . . . . . . . . . 1 . . 1 . . . . 2 . 5 . . 4 . 3 1 1 . Robot Analysis 10 | . 2 1 1 . . . . . . . . . 1 . . . . . . . . . 1 . . 4 . . . . . Prototype ID Bank 7 | . . . . . . 1 . . . . . . . . . . . . . . . . 2 . . 4 . . . . . Open Door 12 | . . 1 . . . . 1 1 . . . . . . . 1 7 . . . . . . . . . . . 1 . . Level Access Points 2 | . . . . . . . . . . . . . . . . . . . . 1 . . . . . . . . 1 . . Branch Access Points 5 | . . . . . . . . . . . 1 . 1 . . . . . . . . . 1 . . . . 1 1 . . Machine Index 3 | . . . . . . . . . . . . . . . . . . . . . 1 . 1 . . . . 1 . . . Terminal Index 4 | . . . 1 . . . . . . . 1 . . . . . . . . . . . 1 . . . . . 1 . . Fabricator Index 1 | . . . . . . . . . . . . . . . . . . . . . . . . . . . . . 1 . . Unreport Threat 13 | . . . . . 1 . . . . . 2 . 1 . . . 5 . . . 1 . 2 . . . . . 1 . . Locate Traps 8 | . . . 1 . . . . . . . . . . . . . . . . . . . 5 . . . . . 2 . . Recall Extermination 3 | . . . . . . . . . . . 1 . 1 . . . . . . . . . . . . . . . 1 . . Registered Components 1 | . . . . . . . . . . . . . . . . . . . . . . . . . . . . . 1 . . Registered Prototypes 2 | . . . . . . . . . . . . . . . . . . . . . . . . . . . . . 2 . . Zone Layout 1 | . . . . . 1 . . . . . . . . . . . . . . . . . . . . . . . . . . Fabricator Hacks 29 | . . . . . . 2 . . . . 3 . 3 . . 1 . . . . 1 . 4 . . . . 9 6 . . Network Status 6 | . . . . . . 1 . . . . 1 . 1 . . 1 . . . . . . 1 . . . . 1 . . . Load Schematic 17 | . . . . . . 1 . . . . 2 . 2 . . . . . . . 1 . 3 . . . . 4 4 . . Build 6 | . . . . . . . . . . . . . . . . . . . . . . . . . . . . 4 2 . . Repair Station Hacks 34 | . 2 . 10 . . 2 . . . . 5 . . . . 2 . . . . 2 . 9 . . . . . 2 . . Scan Component 18 | . 1 . 5 . . 1 . . . . 3 . . . . 1 . . . . 1 . 5 . . . . . 1 . . Repair 16 | . 1 . 5 . . 1 . . . . 2 . . . . 1 . . . . 1 . 4 . . . . . 1 . . Recycling Unit Hacks 12 | . . . . . 1 . . . . . 5 . 1 . . 1 1 . . . 1 . 2 . . . . . . . . Retrieve Components 12 | . . . . . 1 . . . . . 5 . 1 . . 1 1 . . . 1 . 2 . . . . . . . . Scanalyzer 34 | . . . . . 9 . . . . . 7 . . . . . . . . . . . 6 . . . . 3 7 2 . Insert Component 20 | . . . . . 4 . . . . . 6 . . . . . . . . . . . 3 . . . . 2 4 1 . Analyze 14 | . . . . . 5 . . . . . 1 . . . . . . . . . . . 3 . . . . 1 3 1 . Garrison Access Hacks 12 | . . . . . . 1 . . . . 3 . . . . . . . . . . . 4 . . . . 1 1 1 1 Seal Access 12 | . . . . . . 1 . . . . 3 . . . . . . . . . . . 4 . . . . 1 1 1 1 Unauthorized Hacks 53 | . 5 . 3 . 4 1 . . . . 6 . 7 . . 1 . . . . 6 . 8 . . . . 4 6 2 . Terminals 34 | . 4 . 3 . 3 . . . . . 4 . 3 . . 1 . . . . 4 . 5 . . . . 2 3 2 . Assimilate 8 | . . . . . . . . . . . 2 . 1 . . 1 . . . . 1 . 2 . . . . . . 1 . Botnet 17 | . 2 . 2 . 1 . . . . . 2 . 1 . . . . . . . 2 . 2 . . . . 2 2 1 . Disrupt 2 | . 1 . . . 1 . . . . . . . . . . . . . . . . . . . . . . . . . . Operators 7 | . 1 . 1 . 1 . . . . . . . 1 . . . . . . . 1 . 1 . . . . . 1 . . Fabricators 17 | . . . . . . 1 . . . . 2 . 4 . . . . . . . 2 . 3 . . . . 2 3 . . Prioritize 3 | . . . . . . . . . . . . . . . . . . . . . . . . . . . . 2 1 . . Fabnet 3 | . . . . . . . . . . . . . 2 . . . . . . . 1 . . . . . . . . . . Recompile 11 | . . . . . . 1 . . . . 2 . 2 . . . . . . . 1 . 3 . . . . . 2 . . Repair Stations . | . . . . . . . . . . . . . . . . . . . . . . . . . . . . . . . . Recycling Units 2 | . 1 . . . 1 . . . . . . . . . . . . . . . . . . . . . . . . . . Tunnel 2 | . 1 . . . 1 . . . . . . . . . . . . . . . . . . . . . . . . . . Scanalyzers . | . . . . . . . . . . . . . . . . . . . . . . . . . . . . . . . . Garrison Access . | . . . . . . . . . . . . . . . . . . . . . . . . . . . . . . . . Data Cores Recovered . | . . . . . . . . . . . . . . . . . . . . . . . . . . . . . . . . Used . | . . . . . . . . . . . . . . . . . . . . . . . . . . . . . . . . Hacking Detections 99 | . 4 1 5 . 8 6 . . . . 21 . 7 . . 2 13 1 . 1 6 . 9 . . . . 6 6 3 . Full Trace Events 6 | . . . . . 2 . . . . . 2 . . . . . 2 . . . . . . . . . . . . . . Feedback Events 1 | . . . . . . . . . . . 1 . . . . . . . . . . . . . . . . . . . . Corruption 1 | . . . . . . . . . . . 1 . . . . . . . . . . . . . . . . . . . . Feedback Blocked . | . . . . . . . . . . . . . . . . . . . . . . . . . . . . . . . . Robot Schematics Acquired 3 | . . . . . . . . . 3 . . . . . . . . . . . . . . . . . . . . . . Robots Built . | . . . . . . . . . . . . . . . . . . . . . . . . . . . . . . . . Authchips . | . . . . . . . . . . . . . . . . . . . . . . . . . . . . . . . . Time . | . . . . . . . . . . . . . . . . . . . . . . . . . . . . . . . . Total Robot Build Rating . | . . . . . . . . . . . . . . . . . . . . . . . . . . . . . . . . Part Schematics Acquired 45 | . . . 1 . 4 . . . 15 . 1 . 1 . . 1 . . . . 2 . 8 . . 4 . 4 2 2 . Parts Built 8 | . . . . . . . . . . . . . . . . . . . . . . . . . . . . 5 3 . . Authchips 6 | . . . . . . . . . . . . . . . . . . . . . . . . . . . . 4 2 . . Time 317 | . . . . . . . . . . . . . . . . . . . . . . . . . . . . 228 89 . . Total Part Build Rating 60 | . . . . . . . . . . . . . . . . . . . . . . . . . . . . 36 24 . . Parts Repaired 16 | . 1 . 5 . . 1 . . . . 2 . . . . 1 . . . . 1 . 4 . . . . . 1 . . Time 550 | . 26 . 148 . . 32 . . . . 40 . . . . 50 . . . . 20 . 197 . . . . . 37 . . Parts Recycled . | . . . . . . . . . . . . . . . . . . . . . . . . . . . . . . . . Recycled Matter . | . . . . . . . . . . . . . . . . . . . . . . . . . . . . . . . . Retrieved Matter . | . . . . . . . . . . . . . . . . . . . . . . . . . . . . . . . . Retrieved Components 36 | . . . . . 10 . . . . . 7 . 1 . . 2 10 . . . . . 6 . . . . . . . . Parts Scanalyzed 11 | . . . . . 4 . . . . . 1 . . . . . . . . . . . 3 . . . . 1 1 1 . Part Schematics Acquired 11 | . . . . . 4 . . . . . 1 . . . . . . . . . . . 3 . . . . 1 1 1 . Parts Damaged 2 | . . . . . 1 . . . . . . . . . . . . . . . . . . . . . . . . 1 . Bothacking | -11 -10 -10 -9 -9 -8 -7 -7 -7 -7 -6 -6 -6 -6 -6 -6 -5 -5 -5 -5 -5 -4 -4 -4 -4 -4 -4 -3 -3 -3 -2 -1 ------------ Run | Yrd Mat Min Mat Min Mat Fac Low Low Zio Pro Fac Was Fac Low Low Fac Ext Cet Arc Hub Fac Was Fac Upp Upp Zhi Pro Res Tes Res Acc Used RIF Installer . | . . . . . . . . . . . . . . . . . . . . . . . . . . . . . . . . Robots Hacked . | . . . . . . . . . . . . . . . . . . . . . . . . . . . . . . . . Non-combat . | . . . . . . . . . . . . . . . . . . . . . . . . . . . . . . . . Combat . | . . . . . . . . . . . . . . . . . . . . . . . . . . . . . . . . Robot Hacks Applied . | . . . . . . . . . . . . . . . . . . . . . . . . . . . . . . . . Relay Couplers Released . | . . . . . . . . . . . . . . . . . . . . . . . . . . . . . . . . Fabnet Peak Effective % . | . . . . . . . . . . . . . . . . . . . . . . . . . . . . . . . . Robots Rewired 15 | . . . . . . . . . . . 1 . . . . . 14 . . . . . . . . . . . . . . Allies Hacked . | . . . . . . . . . . . . . . . . . . . . . . . . . . . . . . . . Hacks Repelled . | . . . . . . . . . . . . . . . . . . . . . . . . . . . . . . . . Allies | -11 -10 -10 -9 -9 -8 -7 -7 -7 -7 -6 -6 -6 -6 -6 -6 -5 -5 -5 -5 -5 -4 -4 -4 -4 -4 -4 -3 -3 -3 -2 -1 -------- Run | Yrd Mat Min Mat Min Mat Fac Low Low Zio Pro Fac Was Fac Low Low Fac Ext Cet Arc Hub Fac Was Fac Upp Upp Zhi Pro Res Tes Res Acc Total Allies 41 | . . 1 . . . . . . 2 . 3 . 1 . . 1 24 5 . . 1 . 2 . . . . . . 1 . Largest Group 11 | . . 1 . . . . . . 2 2 1 . 2 1 1 1 11 8 7 3 1 . 1 . . . . . . 1 . Highest-Rated Group 676 | . . 31 . . . . . . 79 79 32 . 52 22 22 22 329 676 517 288 26 . 26 . . . . . . 45 . Highest-Rated Ally 159 | . . 31 . . . . . . 51 51 32 . 26 22 22 22 159 159 96 96 26 . 26 . . . . . . 45 . Total Orders 2 | . . . . . . . . . . . . . . . . . . . 2 . . . . . . . . . . . . STAY 1 | . . . . . . . . . . . . . . . . . . . 1 . . . . . . . . . . . . FOLLOW 1 | . . . . . . . . . . . . . . . . . . . 1 . . . . . . . . . . . . Ally Attacks 254 | . . . . . . . . . . 4 4 . . . . . 189 11 30 16 . . . . . . . . . . . Total Damage 6241 | . . . . . . . . . . 150 182 . . . . . 3699 625 1170 415 . . . . . . . . . . . Kills 40 | . . . . . . . . . . 1 . . . . . . 27 4 4 4 . . . . . . . . . . . Allies Corrupted 2 | . . . . . . . . . . . 1 . . . . . . . . 1 . . . . . . . . . . . Allies Melted . | . . . . . . . . . . . . . . . . . . . . . . . . . . . . . . . . Intel | -11 -10 -10 -9 -9 -8 -7 -7 -7 -7 -6 -6 -6 -6 -6 -6 -5 -5 -5 -5 -5 -4 -4 -4 -4 -4 -4 -3 -3 -3 -2 -1 ------- Run | Yrd Mat Min Mat Min Mat Fac Low Low Zio Pro Fac Was Fac Low Low Fac Ext Cet Arc Hub Fac Was Fac Upp Upp Zhi Pro Res Tes Res Acc Robot Analysis Total 10 | . 2 1 1 . . . . . . . . . 1 . . . . . . . . . 1 . . 4 . . . . . Derelict Logs Recovered 14 | . . 1 . 1 . . 2 3 2 2 . . . 1 . . . . . . . . . 2 . . . . . . . Drone Launches . | . . . . . . . . . . . . . . . . . . . . . . . . . . . . . . . . Drone Recoveries . | . . . . . . . . . . . . . . . . . . . . . . . . . . . . . . . . Exploration | -11 -10 -10 -9 -9 -8 -7 -7 -7 -7 -6 -6 -6 -6 -6 -6 -5 -5 -5 -5 -5 -4 -4 -4 -4 -4 -4 -3 -3 -3 -2 -1 ------------- Run | Yrd Mat Min Mat Min Mat Fac Low Low Zio Pro Fac Was Fac Low Low Fac Ext Cet Arc Hub Fac Was Fac Upp Upp Zhi Pro Res Tes Res Acc Turns Passed 20651 | 130 1296 682 961 1179 1050 1359 711 487 541 287 1540 34 421 382 32 396 1438 318 498 281 265 149 1638 158 162 282 134 647 1292 1392 509 Spaces Moved 20855 | 81 856 590 447 842 723 1143 976 896 836 551 2466 71 656 549 37 415 944 144 229 303 368 291 1663 208 193 181 223 1224 1298 763 688 Core 745 | 4 . . . . . . . . . . . . . . . . . . . . . . . . . 8 . . . 60 673 Treads 873 | . . . . . . . . . . . . . . . . . . . . . . . . . . . . . 196 677 . Legs . | . . . . . . . . . . . . . . . . . . . . . . . . . . . . . . . . Wheels 4371 | 77 856 590 447 842 723 836 . . . . . . . . . . . . . . . . . . . . . . . . . Hover 14866 | . . . . . . 307 976 896 836 551 2466 71 656 549 37 415 944 144 229 303 368 291 1663 208 193 173 223 1224 1102 26 15 Flight . | . . . . . . . . . . . . . . . . . . . . . . . . . . . . . . . . Fastest Speed 27 | 50 80 90 95 95 85 45 45 45 45 45 38 45 45 52 52 48 48 53 43 40 40 40 27 30 30 30 35 33 33 50 50 Average Speed 60 | 79 93 94 95 99 98 89 45 45 45 45 40 45 50 52 52 55 67 53 71 43 40 40 43 30 30 81 35 34 60 134 50 Slowest Speed 1150 | 95 105 95 95 125 108 120 45 45 105 45 45 45 106 52 52 102 102 114 430 108 40 40 106 30 30 1150 35 91 145 145 60 Overloaded Moves . | . . . . . . . . . . . . . . . . . . . . . . . . . . . . . . . . Propulsion Burnouts . | . . . . . . . . . . . . . . . . . . . . . . . . . . . . . . . . Robots Hopped . | . . . . . . . . . . . . . . . . . . . . . . . . . . . . . . . . Cave-ins Triggered . | . . . . . . . . . . . . . . . . . . . . . . . . . . . . . . . . Teleports 1 | . . . . . . . . . . . . . . . . . . . . . . . . . . . . 1 . . . Exploration Rate (%) 53 | 3 79 99 35 96 39 22 81 91 83 74 57 60 20 64 16 10 86 68 86 28 12 95 53 43 48 64 49 25 82 21 17 Regions Visited 31 Branch Regions 17 Pre-discovered Areas 10 | . 1 . . . 1 . . . 3 . . . . 1 . . . . . . . . . 1 . 3 . . . . . Known Exits Taken 21 | . . . . . . 1 1 1 1 1 . . 1 1 1 1 1 1 1 1 . . 1 1 1 1 1 1 1 1 . Unknown Exits Taken 6 | 1 1 1 1 1 1 . . . . . . . . . . . . . . . . . . . . . . . . . . Scrap Searched 22 | . . 1 . 2 . . 3 4 2 4 . . . 2 1 . . . . . . . . 1 1 . 1 . . . . Spaces Dug 220 | . . . . . . 4 15 . . . 43 . 11 7 . 1 6 . . 14 9 . 30 1 8 . 2 33 29 7 . Terrain Destroyed 1038 | 3 19 . 65 74 13 8 34 . . . 60 . 15 42 . 43 73 61 7 182 15 1 76 2 11 . 3 38 107 86 . Melee . | . . . . . . . . . . . . . . . . . . . . . . . . . . . . . . . . Projectile 308 | . . . . . 1 8 9 . . . 60 . 15 10 . 4 10 . 7 17 15 1 43 2 11 . 3 38 42 12 . AOE 730 | 3 19 . 65 74 12 . 25 . . . . . . 32 . 39 63 61 . 165 . . 33 . . . . . 65 74 . Terrain Rammed . | . . . . . . . . . . . . . . . . . . . . . . . . . . . . . . . . Walls Destroyed . | . . . . . . . . . . . . . . . . . . . . . . . . . . . . . . . . Machines Disabled . | . . . . . . . . . . . . . . . . . . . . . . . . . . . . . . . . Actions | -11 -10 -10 -9 -9 -8 -7 -7 -7 -7 -6 -6 -6 -6 -6 -6 -5 -5 -5 -5 -5 -4 -4 -4 -4 -4 -4 -3 -3 -3 -2 -1 --------- Run | Yrd Mat Min Mat Min Mat Fac Low Low Zio Pro Fac Was Fac Low Low Fac Ext Cet Arc Hub Fac Was Fac Upp Upp Zhi Pro Res Tes Res Acc Total 27636 | 117 1168 679 889 1119 955 1415 1241 978 1000 589 2939 72 725 631 49 564 1699 366 495 426 467 317 2514 294 280 301 271 1401 1723 1104 848 Wait 4939 | 9 160 47 333 195 99 134 235 80 137 39 363 2 34 64 13 101 587 199 164 82 77 7 722 78 74 88 40 98 283 253 142 Move 20827 | 80 855 589 446 841 722 1142 975 895 835 550 2466 70 655 548 36 414 943 143 228 302 368 290 1662 207 192 180 222 1224 1297 762 688 Hop . | . . . . . . . . . . . . . . . . . . . . . . . . . . . . . . . . Pick Up 172 | 6 14 5 13 7 20 13 3 . 7 . 10 . 5 . . 2 10 . 5 1 3 4 12 . . 4 . 5 14 6 3 Fast Attach 96 | 7 3 1 6 4 2 5 . 1 4 . 4 . 2 1 . 7 1 . 7 . 1 . 10 . . 2 . 7 11 7 3 Attach 78 | . 3 . 2 4 2 8 6 . 1 . 3 . 1 1 . 9 6 2 1 1 2 . 4 . . . . 7 6 7 2 Detach 61 | . 2 1 1 1 . 9 6 1 3 . 4 . 2 1 . 6 1 2 4 . . . 1 . . . . . 4 12 . Swap 270 | 1 11 3 15 15 31 29 1 1 2 . 14 . 4 5 . 5 18 5 15 4 1 5 24 4 2 10 6 12 19 8 . Drop 236 | . 9 8 14 13 21 25 3 . 10 . 13 . 5 . . 5 6 . 8 2 . 4 26 . . 7 . 10 21 24 2 Fire 848 | 14 111 25 59 39 58 50 12 . 1 . 61 . 17 11 . 15 39 15 63 21 15 7 53 5 12 10 3 38 68 23 3 Melee . | . . . . . . . . . . . . . . . . . . . . . . . . . . . . . . . . Ram 7 | . . . . . . . . . . . . . . . . . . . . . . . . . . . . . . 2 5 Kick . | . . . . . . . . . . . . . . . . . . . . . . . . . . . . . . . . Crush . | . . . . . . . . . . . . . . . . . . . . . . . . . . . . . . . . Escape Stasis 26 | . . . . . . . . . . . . . . . . . 13 . . 13 . . . . . . . . . . . Rewire 76 | . . . . . . . . . . . 1 . . . . . 75 . . . . . . . . . . . . . . Trap . | . . . . . . . . . . . . . . . . . . . . . . . . . . . . . . . . Miscellaneous . | . . . . . . . . . . . . . . . . . . . . . . . . . . . . . . . . Route ------- -11/Scrapyard -10/Materials (discovered 4 exits: *Mat x2 / *Min / [*Sub]) -10/Mines (discovered 2 exits: *Mat x2) -9/Materials (discovered 4 exits: *Mat / [*Min x2] / Sto) -9/Mines (discovered 4 exits: *Mat x2 / [*Exi] / *Zio) -8/Materials -7/Factory -7/Lower Caves -7/Lower Caves -7/Zion -6/Proximity Caves -6/Factory (discovered 5 exits: *Fac x3 / *Low x2) -6/Waste -6/Factory (discovered 3 exits: *Fac / *Low x2) -6/Lower Caves -6/Lower Caves -5/Factory (discovered 4 exits: Fac / Upp x2 / *Ext) -5/Extension (discovered 3 exits: *Fac x2 / *Cet) -5/Cetus -5/Archives (discovered 3 exits: *Fac / *Hub x2) -5/Hub_04(d) (discovered 4 exits: *Fac x4) -4/Factory -4/Waste -4/Factory (discovered 6 exits: *Res x3 / *Upp x2 / Arm) -4/Upper Caves -4/Upper Caves (discovered 2 exits: *Res / *Zhi) -4/Zhirov -3/Proximity Caves -3/Research (discovered 3 exits: Res / *Tes x2) -3/Testing -2/Research -1/Access History --------- Turn | Location | Event 15 | -11/Scrapyard | Discovered new exit (range 16) 131 | -11/Scrapyard | Entered Materials 280 | -10/Materials | Repaired Lrg. Storage Unit 303 | -10/Materials | Build established: Mutant 323 | -10/Materials | Discovered new exit (range 16) 575 | -10/Materials | Discovered new exit (range 16) 769 | -10/Materials | Core integrity fell below 50% 1203 | -10/Materials | Discovered new exit (range 15) 1383 | -10/Materials | Discovered new exit (range 9) 1427 | -10/Materials | Entered Mines 1427 | -10/Mines | Discovered new exit (range 11) 1430 | -10/Mines | Received a Mining Laser from a helpful Derelict 1582 | -10/Mines | Discovered new exit (range 12) 1618 | -10/Mines | Met a Derelict shopkeep closing up shop 1869 | -10/Mines | Build established: Scavenger-Mutant 2109 | -10/Mines | Entered Materials 2109 | -9/Materials | Evolved 2 slots: Utility x2 2110 | -9/Materials | Identified exit to Storage 2547 | -9/Materials | Repaired Hvy. Assault Rifle 2575 | -9/Materials | Repaired Lgt. Assault Rifle 2602 | -9/Materials | Repaired Hover Unit 2641 | -9/Materials | Repaired Imp. Heat Sink 2669 | -9/Materials | Repaired Lgt. Assault Rifle 2788 | -9/Materials | Discovered new exit (range 8) 2843 | -9/Materials | Discovered new exit (range 6) 3064 | -9/Materials | Discovered new exit (range 6) 3070 | -9/Materials | Entered Mines 3352 | -9/Mines | Discovered new exit (range 10) 3359 | -9/Mines | Received a Rocket Launcher from a helpful Derelict 3527 | -9/Mines | Assembled infested the area 3800 | -9/Mines | Core integrity fell below 50% 3830 | -9/Mines | Lost 5 parts (1p2n2u) 3964 | -9/Mines | A weapon hastily lodged in a ceiling crevice suddenly fell to the ground 3977 | -9/Mines | Learned location of 1 exit from Proximity Caves 4022 | -9/Mines | Deemed a non-threat by the Exiles lab entrance 4022 | -9/Mines | Discovered new exit (range 5) 4059 | -9/Mines | Discovered new exit (range 7) 4063 | -9/Mines | A Derelict revealed a hidden shortcut to a safe place 4249 | -9/Mines | Entered Materials 4249 | -8/Materials | Evolved 2 slots: Propulsion x2 4814 | -8/Materials | Discovered new exit (range 10) 5190 | -8/Materials | Garrison activated, responded to threat 5299 | -8/Materials | Entered Factory 5299 | -7/Factory | Evolved 2 slots: Utility x2 5562 | -7/Factory | Discovered new exit (range 3) 5564 | -7/Factory | Identified exit to Lower Caves 5599 | -7/Factory | Build established: Scavenger-Skirmisher 5780 | -7/Factory | Repaired Rocket Launcher 6658 | -7/Factory | Entered Lower Caves 6680 | -7/Lower Caves | Build established: Scavenger-Scout 6686 | -7/Lower Caves | Encountered a Warlord checkpoint 7359 | -7/Lower Caves | Discovered new exit (range 9) 7363 | -7/Lower Caves | Identified exit to Lower Caves 7369 | -7/Lower Caves | Entered another Lower Caves area 7417 | -7/Lower Caves | Learned 8 Factory zone layouts 7423 | -7/Lower Caves | Identified exit to Zion 7856 | -7/Lower Caves | Entered Zion 7884 | -7/Zion | Discovered new exit (range 16) 7902 | -7/Zion | Given the Hacking Drone Bay 7902 | -7/Zion | Found Prototype Device 7902 | -7/Zion | Identified Hacking Drone Bay 7917 | -7/Zion | Gained Derelict followers 7935 | -7/Zion | Learned Factory trap positions 7946 | -7/Zion | Learned location of Data Miner (-6) 8020 | -7/Zion | Visited the Megawrench Repair Shop 8020 | -7/Zion | Megawrench repaired 7 parts 8085 | -7/Zion | Found Prototype Hackware 8087 | -7/Zion | Found Prototype Processor 8089 | -7/Zion | Found Prototype Processor 8091 | -7/Zion | Found Prototype Processor 8093 | -7/Zion | Found Prototype Processor 8170 | -7/Zion | Found Prototype Special Weapon 8170 | -7/Zion | Identified RU-N14's Throwing Claymores 8264 | -7/Zion | Found Prototype Processor 8264 | -7/Zion | Identified Exp. Terrain Scan Processor 8323 | -7/Zion | Identified exit to Proximity Caves 8397 | -7/Zion | Entered Proximity Caves 8397 | -6/Proximity Caves | Accompanied by 2 allies 8398 | -6/Proximity Caves | Identified exit to Factory 8484 | -6/Proximity Caves | Learned 4 Factory zone layouts 8625 | -6/Proximity Caves | Learned 4 Factory zone layouts 8675 | -6/Proximity Caves | Attracted the attention of an 0b10 checkpoint 8684 | -6/Proximity Caves | Entered Factory 8684 | -6/Factory | Evolved 2 slots: Propulsion x2 8685 | -6/Factory | Identified exit to Lower Caves 8685 | -6/Factory | Identified exit to Factory 8686 | -6/Factory | Loaded intel: 101 trap records 9034 | -6/Factory | Discovered exit to Factory (range 8) 9211 | -6/Factory | Identified Exp. System Shield 9327 | -6/Factory | Identified Exp. Signal Interpreter 9327 | -6/Factory | Identified Spectral Analyzer (x2) 9327 | -6/Factory | Identified Exp. Melee Analysis Suite 9360 | -6/Factory | Discovered exit to Factory (range 10) 9572 | -6/Factory | Build established: Scout 9596 | -6/Factory | Found Prototype Processor 9596 | -6/Factory | Identified Exp. Targeting Computer 9733 | -6/Factory | Repaired Gyrokinetic Inverter 9793 | -6/Factory | Repaired Gravmag System 10224 | -6/Factory | Sucked down chute 10224 | -6/Factory | Entered Waste 10229 | -6/Waste | Spotted C-40 Crusher 10239 | -6/Waste | EMP discharged 10243 | -6/Waste | Spotted C-40 Crusher 10246 | -6/Waste | Spotted C-40 Crusher 10251 | -6/Waste | Discovered new exit (range 16) 10252 | -6/Waste | Spotted C-40 Crusher 10258 | -6/Waste | Identified exit to Factory 10258 | -6/Waste | Entered Factory 10263 | -6/Factory | 1 allies followed down the chute 10408 | -6/Factory | Discovered exit to Factory (range 3) 10679 | -6/Factory | Entered Lower Caves 10679 | -6/Lower Caves | Accompanied by 1 ally 10749 | -6/Lower Caves | Encountered a Warlord checkpoint 10762 | -6/Lower Caves | Learned location of Extension (-5) 11014 | -6/Lower Caves | Discovered new exit (range 8) 11024 | -6/Lower Caves | Found Alien Artifact 11024 | -6/Lower Caves | Identified Core Expander 11024 | -6/Lower Caves | Installed Core Expander, added new Propulsion slot 11034 | -6/Lower Caves | Identified exit to Lower Caves 11061 | -6/Lower Caves | Entered another Lower Caves area 11061 | -6/Lower Caves | Accompanied by 1 ally 11073 | -6/Lower Caves | Discovered exit to Factory (range 19) 11093 | -6/Lower Caves | Entered Factory 11093 | -5/Factory | Accompanied by 1 ally 11093 | -5/Factory | Evolved 2 slots: Utility x2 11094 | -5/Factory | Identified exit to Upper Caves 11094 | -5/Factory | Identified exit to Extension 11363 | -5/Factory | Repaired Gravmag Array? 11470 | -5/Factory | Discovered new exit (range 19) 11489 | -5/Factory | Entered Extension 11489 | -5/Extension | Accompanied by 1 ally 11652 | -5/Extension | Lost 4 allies 11707 | -5/Extension | Rescued a captive Derelict 11709 | -5/Extension | Rescued a captive Derelict 11985 | -5/Extension | Build established: Hacker-Mutant 12076 | -5/Extension | Rescued a captive Derelict 12077 | -5/Extension | Rescued a captive Derelict 12089 | -5/Extension | Rescued a captive Derelict 12096 | -5/Extension | Rescued a captive Derelict 12329 | -5/Extension | Spotted B-75 Beast 12345 | -5/Extension | Destroyed B-75 Beast 12351 | -5/Extension | Spotted B-75 Beast 12389 | -5/Extension | First assault squad dispatched 12401 | -5/Extension | Destroyed B-75 Beast 12408 | -5/Extension | Discovered new exit (range 10) 12430 | -5/Extension | Lost 8 allies 12555 | -5/Extension | Lost 3 allies 12596 | -5/Extension | Rescued A7 12718 | -5/Extension | Rescued a captive Derelict 12786 | -5/Extension | Rescued a captive Derelict 12786 | -5/Extension | Rescued a captive Derelict 12859 | -5/Extension | Discovered new exit (range 8) 12862 | -5/Extension | Discovered new exit (range 11) 12902 | -5/Extension | Identified exit to Factory 12913 | -5/Extension | Identified exit to Cetus 12927 | -5/Extension | Entered Cetus 12927 | -5/Cetus | Accompanied by 6 allies (A7) 12932 | -5/Cetus | Acquired a Cetus Manufacturing Module code from A7 12969 | -5/Cetus | Spotted Cetus Guard 12969 | -5/Cetus | Spotted Cetus Guard 12974 | -5/Cetus | Spotted Cetus Guard 12981 | -5/Cetus | Spotted Cetus Guard 12990 | -5/Cetus | Allies destroyed Cetus Guard 12995 | -5/Cetus | Allies destroyed Cetus Guard 13002 | -5/Cetus | Destroyed Cetus Guard 13004 | -5/Cetus | Allies destroyed Cetus Guard 13026 | -5/Cetus | Lost 3 allies 13029 | -5/Cetus | Started Cetus Manufacturing Module 13054 | -5/Cetus | Manufactured an Enhanced Grunt 13079 | -5/Cetus | Manufactured an Enhanced Grunt 13104 | -5/Cetus | Manufactured an Enhanced Grunt 13129 | -5/Cetus | Manufactured an Enhanced Grunt 13154 | -5/Cetus | Manufactured an Enhanced Grunt 13195 | -5/Cetus | Found a strange terminal 13200 | -5/Cetus | Discovered new exit (range 23) 13211 | -5/Cetus | Identified exit to Archives 13245 | -5/Cetus | Entered Archives 13245 | -5/Archives | Accompanied by 8 allies (A7) 13338 | -5/Archives | Discovered exit to Factory (range 20) 13364 | -5/Archives | Discovered new exit (range 24) 13528 | -5/Archives | Discovered new exit (range 21) 13717 | -5/Archives | Identified exit to Hub_04(d) 13743 | -5/Archives | Entered Hub_04(d) 13743 | -5/Hub_04(d) | Accompanied by 3 allies 13747 | -5/Hub_04(d) | Discovered exit to Factory (range 13) 13908 | -5/Hub_04(d) | Build established: Scavenger-Scout 14000 | -5/Hub_04(d) | Network Hub disabled 14003 | -5/Hub_04(d) | Spotted Lightning 14013 | -5/Hub_04(d) | Spotted Lightning 14019 | -5/Hub_04(d) | Spotted Lightning 14024 | -5/Hub_04(d) | Entered Factory 14024 | -4/Factory | Evolved 2 slots: Utility x2 14050 | -4/Factory | Lost 3 allies 14093 | -4/Factory | Repaired Antimatter Reactor 14153 | -4/Factory | Discovered new exit (range 23) 14155 | -4/Factory | Spotted B-86 Titan 14289 | -4/Factory | Sucked down chute 14289 | -4/Factory | Entered Waste 14289 | -4/Waste | The area was eerily silent 14310 | -4/Waste | Found Prototype Device 14310 | -4/Waste | Identified Exp. Thermal Shield 14391 | -4/Waste | Discovered new exit (range 20) 14438 | -4/Waste | Identified exit to Factory 14438 | -4/Waste | Entered Factory 14888 | -4/Factory | Discovered new exit (range 23) 14889 | -4/Factory | Discovered new exit (range 19) 14918 | -4/Factory | Central database locked down 14945 | -4/Factory | Identified exit to Upper Caves 14950 | -4/Factory | Identified exit to Armory 14980 | -4/Factory | Discovered new exit (range 14) 15035 | -4/Factory | Repaired Cmb. Linear Gravjet 15323 | -4/Factory | Discovered new exit (range 18) 15538 | -4/Factory | Repaired Neutron Cannon? 15794 | -4/Factory | Repaired Antimissile System 15832 | -4/Factory | Repaired Lgt. Quantum Reactor 15853 | -4/Factory | Build established: Hacker-Skirmisher 15918 | -4/Factory | Found Prototype Device 15918 | -4/Factory | Identified Exp. ECM Suite 16076 | -4/Factory | Entered Upper Caves 16186 | -4/Upper Caves | Discovered new exit (range 22) 16221 | -4/Upper Caves | Spotted B-86 Titan 16221 | -4/Upper Caves | Found DCF Scrap (15 items) 16226 | -4/Upper Caves | Identified exit to Upper Caves 16234 | -4/Upper Caves | Entered another Upper Caves area 16245 | -4/Upper Caves | Discovered new exit (range 6) 16246 | -4/Upper Caves | Attracted the attention of an 0b10 checkpoint 16246 | -4/Upper Caves | Identified exit to Research 16246 | -4/Upper Caves | Spotted B-86 Titan 16343 | -4/Upper Caves | Encountered a Warlord checkpoint 16361 | -4/Upper Caves | Discovered new exit (range 20) 16395 | -4/Upper Caves | Identified exit to Zhirov 16396 | -4/Upper Caves | Entered Zhirov 16396 | -4/Zhirov | Discovered new exit (range 3) 16402 | -4/Zhirov | Met Zhirov 16409 | -4/Zhirov | Learned location of Quarantine (-2) 16409 | -4/Zhirov | Learned location of Testing (-3) 16409 | -4/Zhirov | Learned location of Command (-1) 16458 | -4/Zhirov | Zhirov requested help retrieving the SGEMP Prototype 16464 | -4/Zhirov | Found Alien Artifact 16464 | -4/Zhirov | Identified Integrated Dissipator 16464 | -4/Zhirov | Installed Integrated Dissipator, increased core heat dissipation (+20) 16479 | -4/Zhirov | Found Alien Artifact 16675 | -4/Zhirov | Identified exit to Proximity Caves 16678 | -4/Zhirov | Entered Proximity Caves 16784 | -3/Proximity Caves | Spotted B-86 Titan 16809 | -3/Proximity Caves | Discovered exit to Research (range 8) 16812 | -3/Proximity Caves | Entered Research 16812 | -3/Research | Evolved 2 slots: Power x1, Utility x1 16853 | -3/Research | Discovered new exit (range 20) 16897 | -3/Research | Fabricated Exp. Hacking Suite (x1) 16948 | -3/Research | Fabricated Prc. Energy Filter (x1) 17033 | -3/Research | Identified Transdimensional Reconstructor 17047 | -3/Research | Spotted B-86 Titan 17071 | -3/Research | Identified exit to Testing 17141 | -3/Research | Fabricated Adv. Particle Accelerator? 17147 | -3/Research | Spotted B-86 Titan 17204 | -3/Research | Build established: Wizard-Scout 17372 | -3/Research | Fabricated Quantum Capacitor (x2) 17440 | -3/Research | Warped through subspace 17459 | -3/Research | Entered Testing 17516 | -3/Testing | Found Prototype Device 17525 | -3/Testing | Identified Adv. Kinecellerator 17526 | -3/Testing | Found Prototype Device 17527 | -3/Testing | Identified Exp. Terrain Scanner 17575 | -3/Testing | Repaired Cmb. Linear Gravjet 17594 | -3/Testing | Found Prototype Device 17594 | -3/Testing | Identified 2N-1CE's Frost Array 17609 | -3/Testing | Identified exit to Research 17707 | -3/Testing | Central database locked down 17719 | -3/Testing | Fabricated Exp. Terrain Scanner (x1) 17828 | -3/Testing | Found Prototype Launcher 17828 | -3/Testing | Identified Z-bomb Delivery System 18050 | -3/Testing | Found Prototype Device 18051 | -3/Testing | Identified Exp. EM Disruption Field 18053 | -3/Testing | Found Exp. EM Disruption Field 18200 | -3/Testing | Found Prototype Energy Cannon 18200 | -3/Testing | Identified Potential Cannon 18394 | -3/Testing | Fabricated Biometal Medium Treads (x2) 18454 | -3/Testing | Found Prototype Protection 18669 | -3/Testing | Lost 3 parts (1p1u1w) 18687 | -3/Testing | Found Potential Cannon 18751 | -3/Testing | Entered Research 18751 | -2/Research | Evolved 2 slots: Utility x2 18793 | -2/Research | Discovered new exit (range 28) 19201 | -2/Research | Build established: Wizard-Skirmisher 19945 | -2/Research | Build established: Hacker-Skirmisher 20074 | -2/Research | Identified SHELL Armor 20143 | -2/Research | Identified exit to Access 20143 | -2/Research | Entered Access 20143 | -1/Access | Evolved 2 slots: Power x1, Utility x1 20147 | -1/Access | Lost 12 parts (2p5n4u1w) 20422 | -1/Access | Build established: Mutant 20597 | -1/Access | Core integrity fell below 50% 20612 | -1/Access | Lost 3 parts (1n2u) 20646 | -1/Access | Core integrity fell below 20% 20649 | -1/Access | System corruption reached 10% 20652 | -1/Access | Destroyed by H-88 Terminator with KE Penetrator Last Messages --------------- 20621_ Slug penetrates H-88 Terminator. 20622_ Penetrated by Slug. 20625_ Critical hit (Burn: +37). 20626_ System corrupted: Matter fused (-8). 20626_ Slug penetrates Earth. 20627_ The unstable cave ceiling collapses. 20627_ Triggered Alarm Trap. 20627_ An alarm sounds. 20627_ ALERT: Alarm triggered, dispatching investigation squad. 20629_ M-36 Artificer repairs G-73 Enforcer. 20631_ Slug penetrates Wall. 20645_ Sealed Heavy Doors breached. 20645_ Penetrated by Slug. 20645_ Slug penetrates Sealed Heavy Doors. 20645_ Slug penetrates Wall. 20646_ Sealed Heavy Doors breached. 20648_ Slug penetrates Sealed Heavy Doors. 20651_ Penetrated by Slug. 20651_ Broken Adv. Terrain Scan Processor destroyed. 20652_ Slug penetrates Sealed Heavy Doors. Map ----- +----------------------------------------------------+ | ???????????????????????????????????????? ?# | | ???????????????????????????????????????? # | | ???????????????????????????????????????? | | ??????????????????????????????????????? | | ??????????????????????????????????????? | | ???????????????????????????????????????? | | ????????????????????????????????????????????+ | | ????????????????????????????????????????????#### | | ???????????????????????????????????????????????# # | | ???????????????????????????????????????????????# | | ??????????????##+#####?????????????????????????# | | ??????????????# ?######################### | | ??????????????# = ?# | | ??????????????# # | | ??????????????# # | | ??????????????# + pp##########+########## | | ??????????????# # #???????# ????# | | ??????????????# # #???????# ??# | | ??????????????# ?# #???????# # | | ??????????????#########?# #???????# " # " | | ????????????????????????# #???????# """ # "" | | ????????????????????????# #???????# """ # "" | | ????????????????????????# #???????# " # "" | | ????????????????????????# #???????#! ? # "" | | ????????????????????????# #???????# ?? # "" | | ????????????????????????#@ #???????######???# "" | | ????????????????????????# ""#????????????????# ?" | | ???????????????????????? ??????????????????# ? | | ????????????????????????h ??????????????????#?? | | ??????????????????????? ????????????????????## | | ???????????????????????## ""?????????????????????? | | ????????????????????????# "??????????????????????? | | ????????????????????????#""??????????????????????? | | ?????????????????????????????????????????????????? | | ?????????????????????????????????????????????????? | | ?????????????????????????????????????????????????? | | ?????????????????????????????????????????????????? | | ?????????????????????????????????????????????????? | | ?????????????????????????????????????????????????? | | ?????????????????????????????????????????????????? | | ?????????????????????????????????????????????????? | | ?????????????????????????????????????????????????? | | ?????????????????????????????????????????????????? | | ?????????????????????????????????????????????????? | | ?????????????????????????????????????????????????? | | ?????????????????????????????????????????????????? | | ?????????????????????????????????????????????????? | | ?????????????????????????????????????????????????? | | ?????????????????????????????????????????????????? | | ?????????????????????????????????????????????????? | +----------------------------------------------------+ Best States ------------- Heat Dissipation 166 Energy Generation 58 Energy Capacity 725 Matter Stores 300 Matter Capacity 300 Sight Range 24 Robot Scan Range 18 Terrain Scan Range 30 Terrain Scan Density 1010 Jamming Range 16 Power Amplification 40 Additional Mass Support 16 Armor Coverage 900 Resistance: KI 20 Resistance: TH 10 Resistance: EM 75 Utility Shielding 66 Phase Shifting 15 Evasion (%) 73 Targeting Accuracy 6 Core Analysis 6 Recoil Reduction 5 Energy Filtering 50 Particle Charging 50 Offensive Hacking 66 Authchip Count 9 Item Schematics ----------------- Hcp. Storage Unit | -9/Materials | Hacked Imp. Sensor Array | -8/Materials | Scanalyzed Imp. Signal Interpreter | -8/Materials | Scanalyzed Hacking Suite | -8/Materials | Scanalyzed Reactive Plating | -8/Materials | Scanalyzed Magnetic Acceleration Cannon | -7/Zion | Archive Plasma Cannon | -7/Zion | Archive Armor Integrity Analyzer | -7/Zion | Archive Hvy. Machine Gun | -7/Zion | Archive Imp. Medium Armor Plating | -7/Zion | Archive Adv. Terrain Scanner | -7/Zion | Archive Hvy. Ion Cannon | -7/Zion | Archive Neutrino Core | -7/Zion | Archive Recoil Nullifier | -7/Zion | Archive Plasma Rifle | -7/Zion | Archive Kinecellerator | -7/Zion | Archive Drone Bay | -7/Zion | Archive Hvy. Flak Cannon | -7/Zion | Archive Imp. Carbon-fiber Leg | -7/Zion | Archive Lrn. Phase Cannon | -7/Zion | Archive Imp. Utility Shielding | -6/Factory | Scanalyzed Imp. Hacking Suite | -6/Factory | Hacked Exp. Utility Shielding | -5/Factory | Hacked Exp. Hacking Suite | -4/Factory | Hacked Exp. Targeting Computer | -4/Factory | Hacked Point Defense Array | -4/Factory | Scanalyzed Adv. Coolant Injector | -4/Factory | Scanalyzed Adv. Phase Shifter | -4/Factory | Scanalyzed Prc. Energy Filter | -4/Factory | Hacked Biometal Leg | -4/Factory | Hacked Cmb. Linear Gravjet | -4/Factory | Hacked Lrn. Sensor Array | -4/Factory | Hacked Biometal Medium Treads | -4/Factory | Hacked Assault Drone Bay | -4/Zhirov | Free Exp. Heat Sink | -4/Zhirov | Free Exp. Optical Array | -4/Zhirov | Free Imp. Arc Thrower | -4/Zhirov | Free Adv. Particle Accelerator | -3/Research | Hacked Graviton Cannon | -3/Research | Hacked Quantum Capacitor | -3/Research | Hacked Adv. Hardlight Generator | -3/Research | Scanalyzed Exp. Coolant Injector | -3/Testing | Hacked Exp. Terrain Scanner | -3/Testing | Scanalyzed Exp. EM Disruption Field | -2/Research | Scanalyzed Vortex Chain Reactor | -2/Research | Hacked Robot Schematics ------------------ L-41 Fighter | -7/Zion | Archive T-07 Excavator | -7/Zion | Archive G-47 Trooper | -7/Zion | Archive Fabricated ------------ Exp. Hacking Suite | x1 | -3/Research | Authchip Prc. Energy Filter | x1 | -3/Research | Authchip Adv. Particle Accelerator | x1 | -3/Research | Authchip Quantum Capacitor | x2 | -3/Research | Authchip Exp. Terrain Scanner | x1 | -3/Testing | Authchip Biometal Medium Treads | x2 | -3/Testing | Authchip Alien Tech Used ----------------- Core Expander Integrated Dissipator Transdimensional Reconstructor Achievements -------------- None Challenges ------------ None Game ------ Seed InsulatedArchitectBuckler Manual? 0 Play Time 06:08:00 Cumulative 283.2 hours Start 2024.11.29 @ 20:36:19 End 2024.12.01 @ 13:03:18 Sessions 7 Manual Loads 0 Difficulty Rogue Special Mode None Game No. 147 Rogue 147 Adventurer 0 Explorer 0 Win Type - Total 4 Types 4/0/0/0/0/0/0/0/0 Lore% 44 Gallery% 66 Achievement% 58 Wizard Run 0 Options --------- Layout 0 ASCII 0 Keyboard 1 Movement Vi Keybinds 0 Fullscreen 2 Font 18/SmallcapsGlow Map View 76x50 Zoom Use 0% Tactical HUD 1 Map Filters NONE Filters NONE Steam 1 RUN: 6283c40e-8ffe-471e-afbf-c46b124fa41b